fUST/lending_fUST_20260625
["ID","MTS","AMOUNT","RATE_DAILY","PERIOD"]
[426336061,1782321061000,-551.17216884,0.00054794,120]
[426336054,1782321061000,-1000.0,0.00054794,2]
[426336060,1782321061000,-504.98955566,0.00054794,120]
[426336033,1782321061000,-500.0,0.00054794,120]
[426336048,1782321061000,-508.909018,0.00054794,120]
[426336036,1782321061000,-549.54754267,0.00054794,120]
[426336022,1782321061000,-502.78916689,0.00054794,120]
[426336038,1782321061000,-549.33143618,0.00054794,120]
[426336011,1782321061000,-520.47020146,0.00054794,120]
[426336064,1782321061000,-542.6589787,0.00054794,120]
[426336012,1782321061000,-512.11741069,0.00054794,120]
[426336009,1782321061000,-500.0,0.00054794,30]
[426336006,1782321061000,-513.40280262,0.00054794,120]
[426336013,1782321061000,-524.08850441,0.00054794,120]
[426336007,1782321061000,-512.09322032,0.00054794,120]
[426336005,1782321061000,-501.78853598,0.00054794,120]
[426336010,1782321061000,-511.57681141,0.00054794,120]
[426336015,1782321061000,-514.15297341,0.00054794,120]
[426336017,1782321061000,-500.0,0.00054794,120]
[426336014,1782321061000,-500.0,0.00054794,120]
[426336019,1782321061000,-534.09081033,0.00054794,120]
[426336032,1782321061000,-517.81422783,0.00054794,120]
[426336016,1782321061000,-503.40754971,0.00054794,120]
[426336021,1782321061000,-515.60189351,0.00054794,120]
[426336018,1782321061000,-500.0,0.00054794,120]
[426336023,1782321061000,-500.0,0.00054794,120]
[426336025,1782321061000,-518.11271786,0.00054794,120]
[426336024,1782321061000,-520.70831838,0.00054794,120]
[426336028,1782321061000,-500.0,0.00054794,120]
[426336029,1782321061000,-517.47713372,0.00054794,120]
[426336031,1782321061000,-500.0,0.00054794,120]
[426336030,1782321061000,-500.0,0.00054794,120]
[426336027,1782321061000,-513.05675018,0.00054794,120]
[426336026,1782321061000,-557.31773238,0.00054794,120]
[426336034,1782321061000,-511.64157317,0.00054794,10]
[426336035,1782321061000,-977.13,0.00054794,120]
[426336020,1782321061000,-505.08863715,0.00054794,120]
[426336008,1782321061000,-537.45123882,0.00054794,120]
[426336066,1782321061000,-478.515624,0.00054794,120]
[426336075,1782321061000,-500.0,0.00054794,120]
[426336094,1782321061000,-1000.0,0.00054794,2]
[426336096,1782321061000,-1000.0,0.00054794,2]
[426336103,1782321061000,-1000.0,0.00054794,2]
[426336106,1782321061000,-1000.0,0.00054794,2]
[426336105,1782321061000,-1000.0,0.00054794,2]
[426336107,1782321061000,-1000.0,0.00054794,2]
[426336108,1782321061000,-1000.0,0.00054794,2]
[426336112,1782321061000,-1000.0,0.00054794,2]
[426336113,1782321061000,-1000.0,0.00054794,2]
[426336109,1782321061000,-1000.0,0.00054794,2]
[426336111,1782321061000,-1000.0,0.00054794,2]
[426336114,1782321061000,-1000.0,0.00054794,2]
[426336104,1782321061000,-1000.0,0.00054794,2]
[426336099,1782321061000,-1000.0,0.00054794,2]
[426336110,1782321061000,-1000.0,0.00054794,2]
[426336118,1782321061000,-1000.0,0.00054794,2]
[426336117,1782321061000,-1000.0,0.00054794,2]
[426336116,1782321061000,-1000.0,0.00054794,2]
[426336119,1782321061000,-1000.0,0.00054794,2]
[426336126,1782321061000,-1000.0,0.00054794,2]
[426336122,1782321061000,-1000.0,0.00054794,2]
[426336125,1782321061000,-1000.0,0.00054794,2]
[426336123,1782321061000,-1000.0,0.00054794,2]
[426336120,1782321061000,-1000.0,0.00054794,2]
[426336121,1782321061000,-1000.0,0.00054794,2]
[426336124,1782321061000,-1000.0,0.00054794,2]
[426336127,1782321061000,-1000.0,0.00054794,2]
[426336067,1782321061000,-478.515624,0.00054794,120]
[426336115,1782321061000,-1000.0,0.00054794,2]
[426336098,1782321061000,-1000.0,0.00054794,2]
[426336128,1782321061000,-1000.0,0.00054794,2]
[426336089,1782321061000,-1000.0,0.00054794,2]
[426336097,1782321061000,-1000.0,0.00054794,2]
[426336068,1782321061000,-500.0,0.00054794,120]
[426336071,1782321061000,-527.90493735,0.00054794,120]
[426336070,1782321061000,-478.515624,0.00054794,120]
[426336074,1782321061000,-478.515624,0.00054794,120]
[426336069,1782321061000,-478.515624,0.00054794,120]
[426336072,1782321061000,-478.515624,0.00054794,120]
[426336076,1782321061000,-478.515624,0.00054794,120]
[426336079,1782321061000,-500.0,0.00054794,120]
[426336078,1782321061000,-554.08,0.00054794,120]
[426336077,1782321061000,-478.515628,0.00054794,120]
[426336080,1782321061000,-523.48579391,0.00054794,120]
[426336087,1782321061000,-503.54095099,0.00054794,120]
[426336085,1782321061000,-505.6413131,0.00054794,120]
[426336073,1782321061000,-520.86531046,0.00054794,120]
[426336081,1782321061000,-264.87342722,0.00054794,120]
[426336093,1782321061000,-1000.0,0.00054794,2]
[426336095,1782321061000,-1000.0,0.00054794,2]
[426336100,1782321061000,-1000.0,0.00054794,2]
[426336101,1782321061000,-1000.0,0.00054794,2]
[426336084,1782321061000,-502.00057233,0.00054794,120]
[426336092,1782321061000,-1000.0,0.00054794,2]
[426336091,1782321061000,-1000.0,0.00054794,2]
[426336090,1782321061000,-1000.0,0.00054794,2]
[426336086,1782321061000,-746.21,0.00054794,120]
[426336088,1782321061000,-1000.0,0.00054794,2]
[426336082,1782321061000,-542.76132893,0.00054794,120]
[426336083,1782321061000,-516.17750074,0.00054794,120]
[426336102,1782321061000,-1000.0,0.00054794,2]
[426336169,1782321062000,-500.0,0.00057534,120]
[426336168,1782321062000,-500.0,0.00057534,120]
[426336170,1782321062000,-503.57069799,0.00057534,120]
[426336171,1782321062000,-500.0,0.00057534,120]
[426336164,1782321062000,-238.57361998,0.00057534,120]
[426336165,1782321062000,-500.0,0.00057534,120]
[426336166,1782321062000,-500.0,0.00057534,120]
[426336163,1782321062000,-500.0,0.00057534,120]
[426336161,1782321062000,-500.0,0.00057534,120]
[426336162,1782321062000,-500.0,0.00057534,120]
[426336167,1782321062000,-500.0,0.00057534,120]
[426336183,1782321062000,-500.0,0.00057534,120]
[426336177,1782321062000,-500.0,0.00057534,120]
[426336172,1782321062000,-500.0,0.00057534,120]
[426336175,1782321062000,-500.0,0.00057534,120]
[426336174,1782321062000,-500.0,0.00057534,120]
[426336176,1782321062000,-500.0,0.00057534,120]
[426336182,1782321062000,-500.0,0.00057534,120]
[426336179,1782321062000,-500.0,0.00057534,120]
[426336180,1782321062000,-500.0,0.00057534,120]
[426336181,1782321062000,-500.0,0.00057534,120]
[426336178,1782321062000,-284.15178564,0.00057534,120]
[426336184,1782321062000,-500.0,0.00057534,120]
[426336187,1782321062000,-500.0,0.00057534,120]
[426336186,1782321062000,-1249.46,0.00057534,120]
[426336158,1782321062000,-540.32488306,0.00057534,120]
[426336173,1782321062000,-500.0,0.00057534,120]
[426336159,1782321062000,-500.0,0.00057534,120]
[426336145,1782321062000,-500.0,0.00057534,120]
[426336160,1782321062000,-500.0,0.00057534,120]
[426336130,1782321062000,-1000.0,0.00054794,2]
[426336131,1782321062000,-1046.93376091,0.00054794,2]
[426336129,1782321062000,-1000.0,0.00054794,2]
[426336133,1782321062000,-500.0,0.00054795,2]
[426336139,1782321062000,-1479.6669,0.00057534,120]
[426336135,1782321062000,-1000.0,0.00055,120]
[426336138,1782321062000,-154.33698135,0.0005723,41]
[426336132,1782321062000,-500.0,0.00054795,2]
[426336136,1782321062000,-1000.0,0.00056,120]
[426336134,1782321062000,-1135.6,0.000548,120]
[426336137,1782321062000,-1000.0,0.00057,120]
[426336151,1782321062000,-512.44859486,0.00057534,120]
[426336141,1782321062000,-502.82408289,0.00057534,120]
[426336152,1782321062000,-504.77859442,0.00057534,120]
[426336140,1782321062000,-716.3296,0.00057534,120]
[426336144,1782321062000,-500.0,0.00057534,120]
[426336146,1782321062000,-510.77897536,0.00057534,120]
[426336148,1782321062000,-538.61093344,0.00057534,120]
[426336142,1782321062000,-501.68156342,0.00057534,120]
[426336143,1782321062000,-511.55106965,0.00057534,120]
[426336147,1782321062000,-507.89015728,0.00057534,120]
[426336149,1782321062000,-524.05833383,0.00057534,120]
[426336150,1782321062000,-504.4984782,0.00057534,120]
[426336154,1782321062000,-520.59436233,0.00057534,120]
[426336155,1782321062000,-500.0,0.00057534,120]
[426336156,1782321062000,-530.86841462,0.00057534,120]
[426336153,1782321062000,-500.0,0.00057534,120]
[426336188,1782321062000,-500.0,0.00057534,120]
[426336185,1782321062000,-500.0,0.00057534,120]
[426336157,1782321062000,-500.0,0.00057534,120]
[426336190,1782321062000,-510.67931553,0.00057534,120]
[426336224,1782321062000,-876.42,0.00057534,120]
[426336223,1782321062000,-500.0,0.00057534,120]
[426336232,1782321062000,-500.0,0.00057534,120]
[426336235,1782321062000,-526.72390629,0.00057534,120]
[426336234,1782321062000,-506.74003698,0.00057534,120]
[426336225,1782321062000,-539.63805589,0.00057534,120]
[426336226,1782321062000,-534.7115788,0.00057534,120]
[426336236,1782321062000,-500.0,0.00057534,120]
[426336233,1782321062000,-500.0,0.00057534,120]
[426336229,1782321062000,-500.0,0.00057534,120]
[426336231,1782321062000,-502.14545042,0.00057534,14]
[426336227,1782321062000,-500.0,0.00057534,120]
[426336228,1782321062000,-500.0,0.00057534,120]
[426336230,1782321062000,-500.0,0.00057534,120]
[426336238,1782321062000,-500.0,0.00057534,120]
[426336237,1782321062000,-500.0,0.00057534,120]
[426336246,1782321062000,-500.0,0.00057534,120]
[426336249,1782321062000,-500.0,0.00057534,120]
[426336247,1782321062000,-521.0214754,0.00057534,120]
[426336248,1782321062000,-500.0,0.00057534,120]
[426336245,1782321062000,-500.0,0.00057534,120]
[426336239,1782321062000,-524.98468444,0.00057534,120]
[426336240,1782321062000,-500.0,0.00057534,120]
[426336244,1782321062000,-517.35726061,0.00057534,120]
[426336243,1782321062000,-500.0,0.00057534,30]
[426336241,1782321062000,-500.0,0.00057534,120]
[426336192,1782321062000,-1228.02,0.00057534,120]
[426336213,1782321062000,-500.0,0.00057534,120]
[426336219,1782321062000,-515.89404582,0.00057534,120]
[426336242,1782321062000,-500.0,0.00057534,120]
[426336218,1782321062000,-500.0,0.00057534,120]
[426336189,1782321062000,-504.22069536,0.00057534,7]
[426336194,1782321062000,-500.0,0.00057534,120]
[426336191,1782321062000,-501.47086299,0.00057534,120]
[426336193,1782321062000,-500.0,0.00057534,120]
[426336196,1782321062000,-500.0,0.00057534,120]
[426336206,1782321062000,-500.0,0.00057534,120]
[426336208,1782321062000,-500.0,0.00057534,120]
[426336207,1782321062000,-500.0,0.00057534,120]
[426336203,1782321062000,-500.0,0.00057534,2]
[426336199,1782321062000,-500.0,0.00057534,120]
[426336197,1782321062000,-500.0,0.00057534,120]
[426336202,1782321062000,-534.2915273,0.00057534,120]
[426336201,1782321062000,-500.0,0.00057534,120]
[426336195,1782321062000,-502.70018473,0.00057534,120]
[426336204,1782321062000,-492.44573436,0.00057534,120]
[426336217,1782321062000,-508.50849129,0.00057534,120]
[426336198,1782321062000,-500.0,0.00057534,120]
[426336216,1782321062000,-594.31,0.00057534,120]
[426336214,1782321062000,-500.0,0.00057534,120]
[426336222,1782321062000,-500.0,0.00057534,120]
[426336210,1782321062000,-500.0,0.00057534,120]
[426336209,1782321062000,-234.49588971,0.00057534,120]
[426336215,1782321062000,-500.0,0.00057534,120]
[426336212,1782321062000,-507.48283377,0.00057534,120]
[426336220,1782321062000,-625.0,0.00057534,6]
[426336211,1782321062000,-625.0,0.00057534,120]
[426336200,1782321062000,-500.0,0.00057534,120]
[426336205,1782321062000,-500.0,0.00057534,120]
[426336221,1782321062000,-502.34448881,0.00057534,120]
[426336297,1782321063000,-500.0,0.00060273,120]
[426336288,1782321063000,-500.0,0.00060273,120]
[426336289,1782321063000,-500.0,0.00060273,120]
[426336287,1782321063000,-500.0,0.00060273,120]
[426336281,1782321063000,-372.03803315,0.00060273,120]
[426336283,1782321063000,-500.0,0.00060273,120]
[426336280,1782321063000,-534.18238098,0.00060273,120]
[426336282,1782321063000,-514.00173103,0.00060273,120]
[426336279,1782321063000,-455.04862275,0.00060273,120]
[426336290,1782321063000,-472.52499592,0.00060273,120]
[426336278,1782321063000,-502.81798302,0.00060273,120]
[426336285,1782321063000,-500.0,0.00060273,120]
[426336307,1782321063000,-500.0,0.00060273,120]
[426336299,1782321063000,-500.0,0.00060273,120]
[426336294,1782321063000,-500.0,0.00060273,120]
[426336295,1782321063000,-1249.46,0.00060273,120]
[426336298,1782321063000,-1228.02,0.00060273,120]
[426336291,1782321063000,-500.0,0.00060273,120]
[426336292,1782321063000,-500.0,0.00060273,120]
[426336293,1782321063000,-500.0,0.00060273,120]
[426336301,1782321063000,-500.0,0.00060273,120]
[426336300,1782321063000,-500.0,0.00060273,120]
[426336302,1782321063000,-507.37727176,0.00060273,120]
[426336304,1782321063000,-506.89835666,0.00060273,120]
[426336303,1782321063000,-500.0,0.00060273,120]
[426336277,1782321063000,-500.0,0.00060273,120]
[426336296,1782321063000,-500.0,0.00060273,120]
[426336286,1782321063000,-500.0,0.00060273,120]
[426336263,1782321063000,-500.0,0.00057534,120]
[426336284,1782321063000,-631.3398516,0.00060273,120]
[426336305,1782321063000,-500.0,0.00060273,120]
[426336251,1782321063000,-503.73376894,0.00057534,30]
[426336253,1782321063000,-525.87353892,0.00057534,120]
[426336250,1782321063000,-500.0,0.00057534,120]
[426336262,1782321063000,-500.0,0.00057534,120]
[426336252,1782321063000,-500.0,0.00057534,120]
[426336261,1782321063000,-529.74321218,0.00057534,120]
[426336254,1782321063000,-500.0,0.00057534,120]
[426336255,1782321063000,-500.0,0.00057534,120]
[426336259,1782321063000,-977.13,0.00057534,120]
[426336256,1782321063000,-209.2709216,0.00057534,120]
[426336260,1782321063000,-1008.92885946,0.00057534,2]
[426336275,1782321063000,-502.34736079,0.00060273,120]
[426336258,1782321063000,-500.0,0.00057534,120]
[426336265,1782321063000,-746.21,0.00057534,120]
[426336264,1782321063000,-554.08,0.00057534,120]
[426336272,1782321063000,-1000.0,0.0006,120]
[426336274,1782321063000,-500.0,0.00060273,120]
[426336271,1782321063000,-1000.0,0.00059,120]
[426336273,1782321063000,-509.90335034,0.00060273,120]
[426336266,1782321063000,-1000.0,0.0005764,120]
[426336270,1782321063000,-80000.0,0.00058,120]
[426336269,1782321063000,-1000.0,0.00058,120]
[426336268,1782321063000,-14729.0,0.000579,120]
[426336267,1782321063000,-244.0,0.0005764,120]
[426336276,1782321063000,-500.0,0.00060273,120]
[426336257,1782321063000,-513.7935062,0.00057534,120]
[426336306,1782321063000,-500.0,0.00060273,2]
[426336309,1782321063000,-500.0,0.00060273,120]
[426336308,1782321063000,-500.0,0.00060273,120]
[426336339,1782321063000,-500.0,0.00060273,120]
[426336338,1782321063000,-161.24328562,0.00060273,120]
[426336343,1782321063000,-524.53511904,0.00060273,120]
[426336340,1782321063000,-500.0,0.00060273,120]
[426336342,1782321063000,-977.13,0.00060273,120]
[426336341,1782321063000,-500.0,0.00060273,120]
[426336346,1782321063000,-746.21,0.00060273,120]
[426336351,1782321063000,-500.0,0.00063013,120]
[426336349,1782321063000,-500.0,0.00063013,120]
[426336352,1782321063000,-500.0,0.00063013,120]
[426336348,1782321063000,-154.33698135,0.0006238,45]
[426336347,1782321063000,-502.82408289,0.00060274,120]
[426336336,1782321063000,-500.0,0.00060273,120]
[426336353,1782321063000,-500.0,0.00063013,120]
[426336355,1782321063000,-500.0,0.00063013,120]
[426336356,1782321063000,-500.0,0.00063013,120]
[426336357,1782321063000,-500.0,0.00063013,120]
[426336358,1782321063000,-500.0,0.00063013,120]
[426336359,1782321063000,-500.0,0.00063013,120]
[426336362,1782321063000,-500.0,0.00063013,120]
[426336361,1782321063000,-1249.46,0.00063013,120]
[426336360,1782321063000,-500.0,0.00063013,120]
[426336363,1782321063000,-1228.02,0.00063013,120]
[426336364,1782321063000,-500.0,0.00063013,120]
[426336366,1782321063000,-500.0,0.00063013,120]
[426336365,1782321063000,-500.0,0.00063013,120]
[426336354,1782321063000,-500.0,0.00063013,120]
[426336335,1782321063000,-500.0,0.00060273,120]
[426336350,1782321063000,-532.24037528,0.00063013,120]
[426336345,1782321063000,-554.08,0.00060273,120]
[426336337,1782321063000,-500.0,0.00060273,120]
[426336319,1782321063000,-876.42,0.00060273,120]
[426336313,1782321063000,-502.09958059,0.00060273,120]
[426336312,1782321063000,-500.0,0.00060273,120]
[426336311,1782321063000,-625.0,0.00060273,120]
[426336310,1782321063000,-500.0,0.00060273,120]
[426336315,1782321063000,-594.31,0.00060273,120]
[426336317,1782321063000,-625.0,0.00060273,6]
[426336316,1782321063000,-500.0,0.00060273,120]
[426336314,1782321063000,-500.0,0.00060273,120]
[426336320,1782321063000,-500.0,0.00060273,120]
[426336324,1782321063000,-500.0,0.00060273,120]
[426336322,1782321063000,-500.0,0.00060273,120]
[426336318,1782321063000,-500.0,0.00060273,120]
[426336332,1782321063000,-500.0,0.00060273,30]
[426336327,1782321063000,-500.0,0.00060273,120]
[426336344,1782321063000,-500.0,0.00060273,120]
[426336334,1782321063000,-500.0,0.00060273,120]
[426336329,1782321063000,-500.0,0.00060273,120]
[426336331,1782321063000,-500.0,0.00060273,120]
[426336321,1782321063000,-504.15858194,0.00060273,120]
[426336333,1782321063000,-500.0,0.00060273,120]
[426336330,1782321063000,-500.0,0.00060273,120]
[426336326,1782321063000,-500.0,0.00060273,120]
[426336323,1782321063000,-500.0,0.00060273,120]
[426336328,1782321063000,-500.0,0.00060273,120]
[426336325,1782321063000,-500.0,0.00060273,120]
[426336411,1782321064000,-500.0,0.00065753,120]
[426336405,1782321064000,-502.82408289,0.00063014,120]
[426336408,1782321064000,-3000.0,0.000645,120]
[426336394,1782321064000,-500.0,0.00063013,120]
[426336407,1782321064000,-492.0,0.00063404,120]
[426336400,1782321064000,-500.0,0.00063013,120]
[426336399,1782321064000,-500.0,0.00063013,120]
[426336398,1782321064000,-529.57398087,0.00063013,120]
[426336397,1782321064000,-500.0,0.00063013,120]
[426336396,1782321064000,-500.0,0.00063013,120]
[426336409,1782321064000,-403.36435031,0.00065753,120]
[426336401,1782321064000,-977.13,0.00063013,120]
[426336410,1782321064000,-500.0,0.00065753,120]
[426336412,1782321064000,-500.0,0.00065753,120]
[426336413,1782321064000,-500.0,0.00065753,120]
[426336414,1782321064000,-500.0,0.00065753,120]
[426336416,1782321064000,-500.0,0.00065753,120]
[426336406,1782321064000,-1000.0,0.00063404,120]
[426336428,1782321064000,-500.0,0.00065753,2]
[426336429,1782321064000,-500.0,0.00065753,120]
[426336418,1782321064000,-500.0,0.00065753,120]
[426336417,1782321064000,-500.0,0.00065753,120]
[426336420,1782321064000,-1249.46,0.00065753,120]
[426336419,1782321064000,-500.0,0.00065753,120]
[426336422,1782321064000,-1228.02,0.00065753,120]
[426336404,1782321064000,-746.21,0.00063013,120]
[426336415,1782321064000,-500.0,0.00065753,120]
[426336392,1782321064000,-505.1498991,0.00063013,120]
[426336367,1782321064000,-500.0,0.00063013,120]
[426336403,1782321064000,-554.08,0.00063013,120]
[426336421,1782321064000,-500.0,0.00065753,120]
[426336369,1782321064000,-500.0,0.00063013,2]
[426336368,1782321064000,-500.0,0.00063013,120]
[426336370,1782321064000,-500.0,0.00063013,120]
[426336375,1782321064000,-500.0,0.00063013,120]
[426336373,1782321064000,-500.0,0.00063013,120]
[426336376,1782321064000,-164.50014595,0.00063013,120]
[426336371,1782321064000,-500.0,0.00063013,120]
[426336374,1782321064000,-625.0,0.00063013,120]
[426336377,1782321064000,-594.31,0.00063013,120]
[426336372,1782321064000,-500.0,0.00063013,120]
[426336378,1782321064000,-500.0,0.00063013,120]
[426336379,1782321064000,-625.0,0.00063013,6]
[426336380,1782321064000,-500.0,0.00063013,120]
[426336381,1782321064000,-876.42,0.00063013,120]
[426336383,1782321064000,-500.0,0.00063013,120]
[426336384,1782321064000,-506.89247805,0.00063013,120]
[426336382,1782321064000,-504.28027521,0.00063013,120]
[426336385,1782321064000,-500.0,0.00063013,120]
[426336386,1782321064000,-541.60560338,0.00063013,120]
[426336387,1782321064000,-500.0,0.00063013,120]
[426336390,1782321064000,-500.0,0.00063013,120]
[426336389,1782321064000,-500.0,0.00063013,120]
[426336391,1782321064000,-160.90879674,0.00063013,120]
[426336388,1782321064000,-500.0,0.00063013,120]
[426336393,1782321064000,-500.0,0.00063013,30]
[426336402,1782321064000,-500.0,0.00063013,120]
[426336395,1782321064000,-500.0,0.00063013,120]
[426336423,1782321064000,-500.0,0.00065753,120]
[426336440,1782321064000,-500.0,0.00065753,120]
[426336424,1782321064000,-500.0,0.00065753,120]
[426336458,1782321064000,-154.33698135,0.00067977,48]
[426336457,1782321064000,-502.82408289,0.00065754,120]
[426336460,1782321064000,-500.0,0.00068493,120]
[426336456,1782321064000,-746.21,0.00065753,120]
[426336463,1782321064000,-500.0,0.00068493,120]
[426336465,1782321064000,-500.0,0.00068493,120]
[426336466,1782321064000,-500.0,0.00068493,120]
[426336464,1782321064000,-500.0,0.00068493,120]
[426336474,1782321064000,-500.0,0.00068493,120]
[426336475,1782321064000,-500.0,0.00068493,120]
[426336467,1782321064000,-500.0,0.00068493,120]
[426336468,1782321064000,-500.0,0.00068493,120]
[426336473,1782321064000,-500.0,0.00068493,120]
[426336469,1782321064000,-1249.46,0.00068493,120]
[426336470,1782321064000,-500.0,0.00068493,120]
[426336471,1782321064000,-1228.02,0.00068493,120]
[426336472,1782321064000,-500.0,0.00068493,120]
[426336476,1782321064000,-500.0,0.00068493,120]
[426336478,1782321064000,-500.0,0.00068493,120]
[426336481,1782321064000,-500.0,0.00068493,120]
[426336485,1782321064000,-625.0,0.00068493,6]
[426336426,1782321064000,-500.0,0.00065753,120]
[426336479,1782321064000,-500.0,0.00068493,120]
[426336484,1782321064000,-500.0,0.00068493,120]
[426336480,1782321064000,-500.0,0.00068493,120]
[426336482,1782321064000,-625.0,0.00068493,120]
[426336477,1782321064000,-500.0,0.00068493,2]
[426336459,1782321064000,-500.0,0.00068493,120]
[426336455,1782321064000,-554.08,0.00065753,120]
[426336483,1782321064000,-594.31,0.00068493,120]
[426336461,1782321064000,-500.0,0.00068493,120]
[426336462,1782321064000,-535.40810372,0.00068493,120]
[426336427,1782321064000,-500.0,0.00065753,120]
[426336425,1782321064000,-500.0,0.00065753,120]
[426336431,1782321064000,-500.0,0.00065753,120]
[426336435,1782321064000,-594.31,0.00065753,120]
[426336438,1782321064000,-500.0,0.00065753,120]
[426336433,1782321064000,-625.0,0.00065753,120]
[426336437,1782321064000,-625.0,0.00065753,6]
[426336434,1782321064000,-380.26,0.00065753,120]
[426336432,1782321064000,-500.0,0.00065753,120]
[426336436,1782321064000,-500.0,0.00065753,120]
[426336486,1782321064000,-500.0,0.00068493,120]
[426336449,1782321064000,-500.0,0.00065753,120]
[426336430,1782321064000,-500.0,0.00065753,120]
[426336444,1782321064000,-500.0,0.00065753,120]
[426336450,1782321064000,-273.83326721,0.00065753,120]
[426336454,1782321064000,-500.0,0.00065753,120]
[426336452,1782321064000,-500.0,0.00065753,120]
[426336453,1782321064000,-977.13,0.00065753,120]
[426336448,1782321064000,-500.0,0.00065753,120]
[426336446,1782321064000,-500.0,0.00065753,30]
[426336451,1782321064000,-500.0,0.00065753,120]
[426336442,1782321064000,-500.0,0.00065753,120]
[426336443,1782321064000,-457.68168257,0.00065753,120]
[426336441,1782321064000,-278.408694,0.00065753,120]
[426336439,1782321064000,-876.42,0.00065753,120]
[426336445,1782321064000,-500.0,0.00065753,120]
[426336447,1782321064000,-500.0,0.00065753,120]
[426336514,1782321065000,-500.0,0.00071232,120]
[426336517,1782321065000,-500.0,0.00071232,120]
[426336515,1782321065000,-500.0,0.00071232,120]
[426336518,1782321065000,-500.0,0.00071232,120]
[426336512,1782321065000,-5204.47402158,0.00070686,28]
[426336513,1782321065000,-500.0,0.00071232,120]
[426336519,1782321065000,-500.0,0.00071232,120]
[426336524,1782321065000,-1228.02,0.00071232,120]
[426336522,1782321065000,-1249.46,0.00071232,120]
[426336520,1782321065000,-500.0,0.00071232,120]
[426336528,1782321065000,-500.0,0.00071232,120]
[426336521,1782321065000,-500.0,0.00071232,120]
[426336523,1782321065000,-500.0,0.00071232,120]
[426336529,1782321065000,-500.0,0.00071232,120]
[426336527,1782321065000,-500.0,0.00071232,120]
[426336526,1782321065000,-500.0,0.00071232,120]
[426336531,1782321065000,-500.0,0.00071232,120]
[426336530,1782321065000,-352.00397524,0.00071232,2]
[426336532,1782321065000,-500.0,0.00071232,120]
[426336516,1782321065000,-500.0,0.00071232,120]
[426336525,1782321065000,-500.0,0.00071232,120]
[426336510,1782321065000,-791.0,0.00069744,120]
[426336497,1782321065000,-500.0,0.00068493,120]
[426336508,1782321065000,-3968.016925,0.0006904,120]
[426336487,1782321065000,-876.42,0.00068493,120]
[426336488,1782321065000,-320.98436657,0.00068493,120]
[426336490,1782321065000,-500.0,0.00068493,120]
[426336501,1782321065000,-746.21,0.00068493,120]
[426336499,1782321065000,-500.0,0.00068493,120]
[426336500,1782321065000,-554.08,0.00068493,120]
[426336489,1782321065000,-500.0,0.00068493,120]
[426336498,1782321065000,-977.13,0.00068493,120]
[426336492,1782321065000,-500.0,0.00068493,30]
[426336491,1782321065000,-500.0,0.00068493,120]
[426336496,1782321065000,-500.0,0.00068493,120]
[426336495,1782321065000,-500.0,0.00068493,120]
[426336494,1782321065000,-500.0,0.00068493,120]
[426336493,1782321065000,-500.0,0.00068493,120]
[426336502,1782321065000,-502.82408287,0.00068494,120]
[426336506,1782321065000,-3000.0,0.0006902,120]
[426336504,1782321065000,-3000.0,0.00069,120]